[Event "Match UKR vs KGZ 2021"]
[Site "Online"]
[Date "2021.02.14"]
[Round "1.14"]
[White "Makeeva, Bermet"]
[Black "Kovalyshyn, Yuliana"]
[Result "1-0"]
[ECO "B44"]
[WhiteElo "1157"]
[BlackElo "1137"]
[Annotator "NA RC"]
[PlyCount "127"]
[EventDate "2021.02.14"]
[EventType "team-tourn"]
[EventCountry "NET"]
[SourceTitle "playchess.com"]
[Source "ChessBase"]
[SourceQuality "1"]
[WhiteTeam "KGZ"]
[BlackTeam "UKR"]
[WhiteTeamCountry "KGZ"]
[TimeControl "900+10"]

1. e4 {[%emt 0:00:00]} c5 {[%emt 0:00:06]} 2. Nf3 {[%emt 0:00:06]} e6 {[%emt 0:00:03]} 3. c4 {[%emt 0:00:06]} Nc6 {[%emt 0:00:10]} 4. d4 {[%emt 0:00:50]} cxd4 {[%emt 0:00:06]} 5. Nxd4 {[%emt 0:00:03]} Bb4+ {[%emt 0:00:42]} 6. Nc3 {[%emt 0:01:32]} Nf6 {[%emt 0:00:30]} 7. Nxc6 {[%emt 0:04:29]} bxc6 {[%emt 0:00:09]} 8. Bd3 {[%emt 0:01:04]} O-O {[%emt 0:00:16]} 9. Bg5 {[%emt 0:01:07]} e5 {[%emt 0:01:44]} 10. O-O {[%emt 0:01:42]} d6 {[%emt 0:01:14]} 11. f4 {[%emt 0:02:45]} Bc5+ {[%emt 0:01:26]} 12. Kh1 {[%emt 0:00:39]} Re8 {[%emt 0:00:33]} 13. fxe5 {[%emt 0:00:46]} dxe5 {[%emt 0:00:22]} 14. Bxf6 {[%emt 0:00:50]} gxf6 {[%emt 0:00:09]} 15. Qf3 {[%emt 0:00:50]} Be7 {[%emt 0:00:31]} 16. Qg3+ {[%emt 0:00:13]} Kh8 {[%emt 0:00:08]} 17. Rad1 {[%emt 0:00:11]} Rg8 {[%emt 0:00:44]} 18. Qf2 {[%emt 0:00:11]} Bg4 {[%emt 0:01:07]} 19. Be2 {[%emt 0:00:16]} Qc8 {[%emt 0:00:57]} 20. h3 {[%emt 0:00:15]} Bxe2 {[%emt 0:00:27]} 21. Nxe2 {[%emt 0:00:07]} Rg7 {[%emt 0:01:15]} 22. Ng3 {[%emt 0:00:20]} Qe6 {[%emt 0:01:12]} 23. Nf5 {[%emt 0:00:08]} Rg6 {[%emt 0:00:08]} 24. Nxe7 {[%emt 0:00:05]} Qxe7 {[%emt 0:00:08]} 25. Rg1 {[%emt 0:00:02]} Rag8 {[%emt 0:00:44]} 26. g4 {[%emt 0:00:14]} Rh6 {[%emt 0:00:51]} 27. Kh2 {[%emt 0:00:05]} Qb7 {[%emt 0:01:23]} 28. Rg3 {[%emt 0:00:20]} c5 {[%emt 0:00:50]} 29. Rdg1 {[%emt 0:00:18]} Qxe4 {[%emt 0:00:15]} 30. Qxc5 {[%emt 0:00:10]} Qe2+ {[%emt 0:00:46]} 31. R1g2 {[%emt 0:00:04]} Qd1 {[%emt 0:00:20]} 32. Qxa7 {[%emt 0:00:07]} e4 {[%emt 0:00:16]} 33. Qxf7 {[%emt 0:00:08]} Qe1 {[%emt 0:00:18]} 34. Qd5 {[%emt 0:00:20]} e3 {[%emt 0:00:22]} 35. Rg1 {[%emt 0:00:09]} Qd2+ {[%emt 0:00:19]} 36. Qxd2 {[%emt 0:00:03]} exd2 {[%emt 0:00:02]} 37. Rd1 {[%emt 0:00:02]} Rd8 {[%emt 0:00:06]} 38. Rg2 {[%emt 0:00:04]} Rc8 {[%emt 0:00:10]} 39. Rgxd2 {[%emt 0:00:04]} Rxc4 {[%emt 0:00:04]} 40. Rd8+ {[%emt 0:00:02]} Kg7 {[%emt 0:00:02]} 41. R8d2 {[%emt 0:00:17]} Rxg4 {[%emt 0:00:09]} 42. Rg2 {[%emt 0:00:06]} Rxg2+ {[%emt 0:00:03]} 43. Kxg2 {[%emt 0:00:02]} Rg6+ {[%emt 0:00:02]} 44. Kh2 {[%emt 0:00:05]} f5 {[%emt 0:00:08]} 45. b4 {[%emt 0:00:05]} Rb6 {[%emt 0:00:09]} 46. Rb1 {[%emt 0:00:09]} Kf6 {[%emt 0:00:06]} 47. b5 {[%emt 0:00:05]} Ke5 {[%emt 0:00:03]} 48. Kg3 {[%emt 0:00:12]} Ke4 {[%emt 0:00:04]} 49. Kf2 {[%emt 0:00:04]} Kf4 {[%emt 0:00:01]} 50. a4 {[%emt 0:00:05]} Ke5 {[%emt 0:00:05]} 51. a5 {[%emt 0:00:16]} Rb8 {[%emt 0:00:03]} 52. b6 {[%emt 0:00:05]} Kd6 {[%emt 0:00:03]} 53. a6 {[%emt 0:00:18]} Kc6 {[%emt 0:00:10]} 54. b7 {[%emt 0:00:03]} Kc7 {[%emt 0:00:07]} 55. a7 {[%emt 0:00:25]} Rxb7 {[%emt 0:00:06]} 56. Rc1+ {[%emt 0:00:16]} Kb6 {[%emt 0:00:09]} 57. a8=Q {[%emt 0:00:05]} h5 {[%emt 0:00:05]} 58. Rb1+ {[%emt 0:00:04]} Kc5 {[%emt 0:00:03]} 59. Qxb7 {[%emt 0:00:03]} Kd4 {[%emt 0:00:09]} 60. Qd7+ {[%emt 0:00:11]} Ke4 {[%emt 0:00:02]} 61. Re1+ {[%emt 0:00:05]} Kf4 {[%emt 0:00:03]} 62. Qd4+ {[%emt 0:00:05]} Kg5 {[%emt 0:00:03]} 63. Rg1+ {[%emt 0:00:03]} Kh6 {[%emt 0:00:06]} 64. Qg7# {[%emt 0:00:05]} 1-0

[Event "Match UKR vs KGZ 2021"]
[Site "Online"]
[Date "2021.02.14"]
[Round "2.6"]
[White "Tulchynskyi, Feliks"]
[Black "Sharshenbekov, Emir"]
[Result "0-1"]
[ECO "D02"]
[WhiteElo "1851"]
[BlackElo "1238"]
[Annotator "NA RC"]
[PlyCount "96"]
[EventDate "2021.02.14"]
[EventType "team-tourn"]
[EventCountry "NET"]
[SourceTitle "playchess.com"]
[Source "ChessBase"]
[SourceQuality "1"]
[WhiteTeam "Ukraine"]
[BlackTeam "Kyrgyzstan"]
[WhiteTeamCountry "UKR"]
[BlackTeamCountry "KGZ"]
[TimeControl "900+10"]

1. Nf3 {[%emt 0:00:04]} d5 {[%emt 0:00:05]} 2. g3 {[%emt 0:00:07]} Nf6 {[%emt 0:00:06]} 3. Bg2 {[%emt 0:00:03]} e6 {[%emt 0:00:03]} 4. O-O {[%emt 0:00:05]} Bd6 {[%emt 0:00:06]} 5. d4 {[%emt 0:00:05]} O-O {[%emt 0:00:10]} 6. c4 {[%emt 0:00:16]} Nc6 {[%emt 0:00:02]} 7. Nbd2 {[%emt 0:00:47]} b6 {[%emt 0:00:11]} 8. b3 {[%emt 0:00:56]} Bb7 {[%emt 0:00:08]} 9. Bb2 {[%emt 0:00:30]} Ne4 $11 {[%emt 0:01:16]} 10. Ne5 {[%emt 0:01:37]} Bxe5 {[%emt 0:03:44]} 11. dxe5 {[%emt 0:06:49]} Nxd2 {[%emt 0:01:14]} 12. Qxd2 {[%emt 0:00:03]} dxc4 {[%emt 0:00:03]} 13. Qc3 {[%emt 0:00:03]} Na5 {[%emt 0:02:31]} 14. Bxb7 {[%emt 0:01:15]} Nxb7 {[%emt 0:00:03]} 15. Qxc4 {[%emt 0:00:01]} c5 {[%emt 0:00:28]} 16. Rfd1 {[%emt 0:00:20]} Qc7 {[%emt 0:00:34]} 17. Bc3 {[%emt 0:00:31]} Rfd8 {[%emt 0:00:29]} 18. e3 {[%emt 0:00:34]} Qc6 {[%emt 0:00:13]} 19. Qe2 {[%emt 0:00:42]} Rxd1+ {[%emt 0:01:34]} 20. Rxd1 {[%emt 0:00:03]} Rd8 {[%emt 0:00:02]} 21. f3 {[%emt 0:01:02]} Rxd1+ {[%emt 0:00:13]} 22. Qxd1 {[%emt 0:00:02]} Qd5 {[%emt 0:00:01]} 23. Qe2 {[%emt 0:00:23]} Nd8 {[%emt 0:00:07]} 24. e4 {[%emt 0:00:02]} Qd7 {[%emt 0:00:04]} 25. Qd2 {[%emt 0:00:02]} Qxd2 {[%emt 0:00:11]} 26. Bxd2 {[%emt 0:00:02]} Nc6 {[%emt 0:00:01]} 27. Bc3 {[%emt 0:00:02]} Kf8 {[%emt 0:00:38]} 28. Kf2 {[%emt 0:00:02]} Ke7 {[%emt 0:00:03]} 29. Ke3 {[%emt 0:00:02]} b5 {[%emt 0:00:11]} 30. a4 {[%emt 0:01:30]} b4 {[%emt 0:00:15]} 31. Be1 {[%emt 0:00:19]} Nxe5 {[%emt 0:00:26]} 32. f4 {[%emt 0:00:30]} Nc6 {[%emt 0:00:07]} 33. Kd3 {[%emt 0:00:06]} Na5 {[%emt 0:00:03]} 34. e5 {[%emt 0:00:06]} Kd7 {[%emt 0:00:04]} 35. Kc2 {[%emt 0:00:11]} Kc6 {[%emt 0:00:02]} 36. Bf2 {[%emt 0:00:04]} Kd5 {[%emt 0:00:02]} 37. Bg1 {[%emt 0:00:04]} a6 {[%emt 0:00:27]} 38. Bf2 {[%emt 0:00:06]} c4 {[%emt 0:00:24]} 39. Be1 {[%emt 0:00:14]} cxb3+ {[%emt 0:00:07]} 40. Kd3 {[%emt 0:00:11]} Nc6 {[%emt 0:00:47]} 41. Bf2 {[%emt 0:00:17]} b2 {[%emt 0:00:40]} 42. Kc2 {[%emt 0:00:03]} Kc4 {[%emt 0:00:08]} 43. Kxb2 {[%emt 0:00:03]} b3 {[%emt 0:00:02]} 44. Be1 {[%emt 0:00:11]} Nb4 {[%emt 0:00:17]} 45. Bd2 {[%emt 0:00:09]} Nd3+ {[%emt 0:00:22]} 46. Ka3 {[%emt 0:00:03]} Nc5 {[%emt 0:00:16]} 47. a5 {[%emt 0:00:16]} Kd3 {[%emt 0:00:18]} 48. Bb4 {[%emt 0:00:09]} Kc2 {[%emt 0:00:05]} 0-1

[Event "Match UKR vs KGZ 2021"]
[Site "Online"]
[Date "2021.02.14"]
[Round "2.7"]
[White "Momunaliev, Ruslan"]
[Black "Niezhentsev, Kyrylo"]
[Result "1-0"]
[ECO "B25"]
[WhiteElo "1324"]
[BlackElo "1628"]
[Annotator "NA RC"]
[PlyCount "95"]
[EventDate "2021.02.14"]
[EventType "team-tourn"]
[EventCountry "NET"]
[SourceTitle "playchess.com"]
[Source "ChessBase"]
[SourceQuality "1"]
[WhiteTeam "Kyrgyzstan"]
[BlackTeam "Ukraine"]
[WhiteTeamCountry "KGZ"]
[BlackTeamCountry "UKR"]
[TimeControl "900+10"]

1. e4 {[%emt 0:00:00]} c5 {[%emt 0:00:03]} 2. Nc3 {[%emt 0:00:05]} e6 {[%emt 0:00:04]} 3. d3 {[%emt 0:00:04]} Nc6 {[%emt 0:00:26]} 4. Nge2 {[%emt 0:00:12]} g6 {[%emt 0:00:05]} 5. g3 {[%emt 0:00:02]} Bg7 {[%emt 0:00:09]} 6. Bg2 {[%emt 0:00:08]} Nge7 {[%emt 0:00:04]} 7. O-O {[%emt 0:00:08]} O-O {[%emt 0:00:08]} 8. f4 {[%emt 0:00:04]} d6 {[%emt 0:00:05]} 9. Be3 {[%emt 0:00:12]} b6 {[%emt 0:00:14]} 10. g4 {[%emt 0:00:25]} f5 {[%emt 0:00:20]} 11. exf5 {[%emt 0:00:08]} exf5 {[%emt 0:00:08]} 12. gxf5 {[%emt 0:00:06]} Bxf5 {[%emt 0:00:21]} 13. Bf2 {[%emt 0:00:25]} d5 {[%emt 0:01:38]} 14. Re1 {[%emt 0:01:23]} Bg4 {[%emt 0:00:45]} 15. Qd2 {[%emt 0:00:19]} Qd7 {[%emt 0:00:56]} 16. d4 {[%emt 0:00:42]} c4 {[%emt 0:01:00]} 17. b3 {[%emt 0:00:45]} cxb3 {[%emt 0:00:16]} 18. axb3 {[%emt 0:00:05]} Be6 {[%emt 0:01:02]} 19. Ng3 {[%emt 0:00:22]} Rf7 {[%emt 0:01:16]} 20. Nce2 {[%emt 0:00:34]} Raf8 {[%emt 0:00:16]} 21. Rad1 {[%emt 0:00:34]} g5 {[%emt 0:01:17]} 22. f5 {[%emt 0:03:21]} Bxf5 {[%emt 0:01:48]} 23. Nxf5 {[%emt 0:00:08]} Qxf5 {[%emt 0:00:06]} 24. Be3 {[%emt 0:00:12]} g4 {[%emt 0:00:25]} 25. Ng3 {[%emt 0:00:07]} Qg6 {[%emt 0:00:07]} 26. c4 {[%emt 0:00:32]} Na5 {[%emt 0:01:37]} 27. cxd5 {[%emt 0:01:00]} Qd6 {[%emt 0:01:45]} 28. Ne4 {[%emt 0:00:26]} Qd7 {[%emt 0:00:40]} 29. d6 {[%emt 0:00:49]} Nf5 {[%emt 0:00:34]} 30. Ng5 {[%emt 0:01:09]} Rf6 {[%emt 0:00:04]} 31. Bf4 {[%emt 0:00:22]} Nxd6 {[%emt 0:00:28]} 32. Be5 {[%emt 0:00:10]} Rf2 {[%emt 0:01:08]} 33. Bd5+ {[%emt 0:00:08]} Kh8 {[%emt 0:00:02]} 34. Bxg7+ {[%emt 0:00:10]} Qxg7 {[%emt 0:00:10]} 35. Qe3 {[%emt 0:00:21]} Qf6 {[%emt 0:00:59]} 36. Ne6 {[%emt 0:00:30]} Rf7 {[%emt 0:00:04]} 37. Qe5 {[%emt 0:00:29]} Qxe5 {[%emt 0:00:19]} 38. dxe5 {[%emt 0:00:14]} Nb5 {[%emt 0:00:09]} 39. Ng5 {[%emt 0:00:39]} Rf8 {[%emt 0:00:11]} 40. e6 {[%emt 0:00:06]} R2f5 {[%emt 0:00:12]} 41. e7 {[%emt 0:00:04]} Re8 {[%emt 0:00:04]} 42. Bf7 {[%emt 0:00:13]} Rxf7 {[%emt 0:00:15]} 43. Nxf7+ {[%emt 0:00:02]} Kg7 {[%emt 0:00:02]} 44. Ng5 {[%emt 0:00:08]} Nxb3 {[%emt 0:00:12]} 45. Rd8 {[%emt 0:00:08]} Nc7 {[%emt 0:00:07]} 46. Ne6+ {[%emt 0:00:09]} Nxe6 {[%emt 0:00:23]} 47. Rxe8 {[%emt 0:00:04]} Nc7 {[%emt 0:00:02]} 48. Rc8 {[%emt 0:00:03]} 1-0

[Event "Match UKR vs KGZ 2021"]
[Site "Online"]
[Date "2021.02.14"]
[Round "2.10"]
[White "Alekseenko, Yuliya"]
[Black "Berdibaeva, Edisa"]
[Result "1-0"]
[ECO "D85"]
[WhiteElo "1760"]
[BlackElo "1272"]
[Annotator "NA RC"]
[PlyCount "65"]
[EventDate "2021.02.14"]
[EventType "team-tourn"]
[EventCountry "NET"]
[SourceTitle "playchess.com"]
[Source "ChessBase"]
[SourceQuality "1"]
[WhiteTeam "Ukraine"]
[BlackTeam "Kyrgyzstan"]
[WhiteTeamCountry "UKR"]
[BlackTeamCountry "KGZ"]
[TimeControl "900+10"]

1. d4 {[%emt 0:00:00]} Nf6 {[%emt 0:00:05]} 2. c4 {[%emt 0:00:02]} g6 {[%emt 0:00:04]} 3. Nc3 {[%emt 0:00:03]} d5 {[%emt 0:00:03]} 4. cxd5 {[%emt 0:00:03]} Nxd5 {[%emt 0:00:02]} 5. e4 {[%emt 0:00:01]} Nxc3 {[%emt 0:00:03]} 6. bxc3 {[%emt 0:00:01]} Bg7 {[%emt 0:00:02]} 7. Nf3 {[%emt 0:00:03]} c5 {[%emt 0:00:05]} 8. Rb1 {[%emt 0:00:03]} O-O {[%emt 0:00:11]} 9. Be2 {[%emt 0:00:05]} Bg4 {[%emt 0:00:15]} 10. Be3 {[%emt 0:03:54]} b6 {[%emt 0:02:50]} 11. O-O {[%emt 0:00:11]} cxd4 {[%emt 0:00:56]} 12. cxd4 {[%emt 0:00:05]} Nc6 {[%emt 0:00:46]} 13. d5 {[%emt 0:00:30]} Bxf3 {[%emt 0:00:38]} 14. Bxf3 {[%emt 0:00:46]} Ne5 {[%emt 0:00:11]} 15. Be2 {[%emt 0:00:19]} Rc8 {[%emt 0:03:31]} 16. Qa4 {[%emt 0:02:00]} Qc7 {[%emt 0:03:06]} 17. Rfc1 {[%emt 0:00:42]} Qb8 {[%emt 0:00:07]} 18. f4 {[%emt 0:00:14]} Bh6 {[%emt 0:01:35]} 19. Rxc8 {[%emt 0:06:38]} Rxc8 {[%emt 0:00:10]} 20. Rb3 {[%emt 0:01:31]} Nf3+ {[%emt 0:03:02]} 21. Bxf3 {[%emt 0:00:50]} Bxf4 {[%emt 0:00:12]} 22. Bxf4 {[%emt 0:00:05]} Qxf4 {[%emt 0:00:04]} 23. Rb1 {[%emt 0:00:04]} Qe3+ {[%emt 0:00:16]} 24. Kh1 {[%emt 0:00:11]} b5 {[%emt 0:00:20]} 25. Qd1 {[%emt 0:00:11]} a6 {[%emt 0:00:07]} 26. Qe1 {[%emt 0:00:15]} Qc5 {[%emt 0:00:08]} 27. h3 {[%emt 0:00:24]} Qc7 {[%emt 0:00:11]} 28. e5 {[%emt 0:00:08]} Qd7 {[%emt 0:00:17]} 29. d6 {[%emt 0:00:20]} exd6 {[%emt 0:00:05]} 30. Bg4 {[%emt 0:00:01]} Qd8 {[%emt 0:00:19]} 31. Bxc8 {[%emt 0:00:03]} Qxc8 {[%emt 0:00:01]} 32. exd6 {[%emt 0:00:01]} Qd7 {[%emt 0:00:04]} 33. Qe7 {[%emt 0:00:03]} 1-0

[Event "Match UKR vs KGZ 2021"]
[Site "Online"]
[Date "2021.02.14"]
[Round "2.12"]
[White "Petrenko, Maryna"]
[Black "Momunkulova, Imannur"]
[Result "1/2-1/2"]
[ECO "B33"]
[WhiteElo "1511"]
[BlackElo "1294"]
[Annotator "NA RC"]
[PlyCount "84"]
[EventDate "2021.02.14"]
[EventType "team-tourn"]
[EventCountry "NET"]
[SourceTitle "playchess.com"]
[Source "ChessBase"]
[SourceQuality "1"]
[WhiteTeam "Ukraine"]
[BlackTeam "Kyrgyzstan"]
[WhiteTeamCountry "UKR"]
[BlackTeamCountry "KGZ"]
[TimeControl "900+10"]

1. e4 {[%emt 0:00:00]} c5 {[%emt 0:00:04]} 2. Nc3 {[%emt 0:00:09]} Nc6 {[%emt 0:00:15]} 3. Nf3 {[%emt 0:00:03]} Nf6 {[%emt 0:00:26]} 4. d4 {[%emt 0:00:19]} cxd4 {[%emt 0:00:05]} 5. Nxd4 {[%emt 0:00:08]} e5 {[%emt 0:00:03]} 6. Nb3 {[%emt 0:00:05]} Bb4 {[%emt 0:00:10]} 7. Bd3 {[%emt 0:00:56]} Bxc3+ {[%emt 0:00:23]} 8. bxc3 {[%emt 0:00:05]} O-O {[%emt 0:00:06]} 9. O-O {[%emt 0:00:06]} h6 {[%emt 0:00:11]} 10. f3 {[%emt 0:00:24]} d6 {[%emt 0:00:10]} 11. Be3 {[%emt 0:00:28]} Be6 {[%emt 0:00:24]} 12. Rb1 {[%emt 0:00:38]} b6 {[%emt 0:00:07]} 13. Qd2 {[%emt 0:00:41]} Rc8 {[%emt 0:00:15]} 14. a4 {[%emt 0:01:04]} Ne7 {[%emt 0:00:17]} 15. a5 {[%emt 0:00:55]} d5 {[%emt 0:00:05]} 16. axb6 {[%emt 0:00:16]} axb6 {[%emt 0:00:11]} 17. Nc1 {[%emt 0:00:37]} Nd7 {[%emt 0:00:36]} 18. Ne2 {[%emt 0:00:44]} dxe4 {[%emt 0:00:18]} 19. fxe4 {[%emt 0:00:43]} Nc5 {[%emt 0:00:25]} 20. Rfd1 {[%emt 0:00:35]} Qc7 {[%emt 0:00:28]} 21. c4 {[%emt 0:01:05]} Bxc4 {[%emt 0:02:23]} 22. Bxc4 {[%emt 0:00:38]} Nxe4 {[%emt 0:00:06]} 23. Bxf7+ {[%emt 0:00:12]} Rxf7 {[%emt 0:00:04]} 24. Qd3 {[%emt 0:00:30]} Qxc2 {[%emt 0:00:25]} 25. Bxb6 {[%emt 0:00:20]} Qxd3 {[%emt 0:00:46]} 26. Rxd3 {[%emt 0:00:06]} Rc2 {[%emt 0:00:33]} 27. Re1 {[%emt 0:00:45]} Ng6 {[%emt 0:00:35]} 28. Ng3 {[%emt 0:01:04]} Nf6 {[%emt 0:01:10]} 29. Be3 {[%emt 0:01:53]} Ng4 {[%emt 0:00:17]} 30. h3 {[%emt 0:00:21]} Nxe3 {[%emt 0:00:09]} 31. Rdxe3 {[%emt 0:00:07]} Rff2 {[%emt 0:01:01]} 32. Ne2 {[%emt 0:01:02]} Rf6 {[%emt 0:00:24]} 33. Ng3 {[%emt 0:00:35]} Nf4 {[%emt 0:00:16]} 34. Ne2 {[%emt 0:00:23]} Rg6 {[%emt 0:00:33]} 35. g4 {[%emt 0:00:45]} Rd6 {[%emt 0:00:59]} 36. Nxf4 {[%emt 0:01:03]} exf4 {[%emt 0:00:03]} 37. Rf3 {[%emt 0:00:31]} Rdd2 {[%emt 0:00:34]} 38. Ra1 {[%emt 0:00:22]} Rg2+ {[%emt 0:00:09]} 39. Kf1 {[%emt 0:00:03]} Rh2 {[%emt 0:00:22]} 40. Kg1 {[%emt 0:00:08]} Rhd2 {[%emt 0:00:46]} 41. Ra8+ {[%emt 0:00:35]} Kh7 {[%emt 0:00:05]} 42. Ra1 {[%emt 0:00:03]} Rg2+ {[%emt 0:01:28]} 1/2-1/2

[Event "Match UKR vs KGZ 2021"]
[Site "Online"]
[Date "2021.02.14"]
[Round "2.13"]
[White "Sezdbekova, Aizhan"]
[Black "Toroptseva, Yevheniia"]
[Result "0-1"]
[ECO "B25"]
[WhiteElo "1442"]
[BlackElo "1655"]
[Annotator "NA RC"]
[PlyCount "78"]
[EventDate "2021.02.14"]
[EventType "team-tourn"]
[EventCountry "NET"]
[SourceTitle "playchess.com"]
[Source "ChessBase"]
[SourceQuality "1"]
[WhiteTeam "Kyrgyzstan"]
[BlackTeam "Ukraine"]
[WhiteTeamCountry "KGZ"]
[BlackTeamCountry "UKR"]
[TimeControl "900+10"]

1. e4 {[%emt 0:00:00]} c5 {[%emt 0:00:03]} 2. Nc3 {[%emt 0:00:08]} Nc6 {[%emt 0:00:03]} 3. g3 {[%emt 0:00:03]} g6 {[%emt 0:00:02]} 4. Bg2 {[%emt 0:00:04]} Bg7 {[%emt 0:00:02]} 5. d3 {[%emt 0:00:06]} d6 {[%emt 0:00:02]} 6. f4 {[%emt 0:00:04]} Rb8 {[%emt 0:00:02]} 7. Nf3 {[%emt 0:00:03]} e6 {[%emt 0:00:03]} 8. O-O {[%emt 0:00:05]} Nge7 {[%emt 0:00:04]} 9. Be3 {[%emt 0:00:07]} b5 {[%emt 0:00:02]} 10. Rb1 {[%emt 0:00:10]} b4 {[%emt 0:00:02]} 11. Ne2 {[%emt 0:00:03]} O-O {[%emt 0:00:05]} 12. d4 {[%emt 0:00:22]} c4 {[%emt 0:00:27]} 13. d5 {[%emt 0:00:17]} exd5 {[%emt 0:00:06]} 14. exd5 {[%emt 0:00:03]} Nf5 {[%emt 0:00:11]} 15. Bf2 {[%emt 0:00:20]} Na5 {[%emt 0:00:03]} 16. Bxa7 {[%emt 0:00:06]} Ra8 {[%emt 0:00:09]} 17. Bf2 {[%emt 0:00:05]} Ba6 {[%emt 0:00:38]} 18. Re1 {[%emt 0:00:13]} c3 {[%emt 0:00:10]} 19. bxc3 {[%emt 0:00:23]} bxc3 {[%emt 0:00:04]} 20. Bb6 {[%emt 0:00:23]} Bxe2 {[%emt 0:00:41]} 21. Rxe2 {[%emt 0:00:19]} Qd7 {[%emt 0:00:04]} 22. Nd4 {[%emt 0:00:53]} Nc4 {[%emt 0:00:32]} 23. Nxf5 {[%emt 0:00:39]} Qxf5 {[%emt 0:00:05]} 24. Bd4 {[%emt 0:00:52]} Nb2 {[%emt 0:01:13]} 25. Qf1 {[%emt 0:02:49]} Bxd4+ {[%emt 0:00:06]} 26. Kh1 {[%emt 0:00:03]} Nc4 {[%emt 0:01:05]} 27. Rb4 {[%emt 0:02:21]} Ne3 {[%emt 0:00:10]} 28. Qc1 {[%emt 0:01:19]} Bc5 {[%emt 0:00:16]} 29. Rb3 {[%emt 0:03:21]} Nxg2 {[%emt 0:00:23]} 30. Rxg2 {[%emt 0:00:15]} Qxd5 {[%emt 0:00:08]} 31. Rxc3 {[%emt 0:00:06]} Rxa2 {[%emt 0:00:16]} 32. Rd3 {[%emt 0:00:25]} Qc6 {[%emt 0:00:28]} 33. Rd1 {[%emt 0:00:12]} Rfa8 {[%emt 0:00:20]} 34. Qd2 {[%emt 0:00:16]} Ra1 {[%emt 0:00:13]} 35. h3 {[%emt 0:00:52]} Qf3 {[%emt 0:02:02]} 36. Rxa1 {[%emt 0:00:26]} Rxa1+ {[%emt 0:00:05]} 37. Kh2 {[%emt 0:00:03]} Qf1 {[%emt 0:00:36]} 38. g4 {[%emt 0:00:08]} Rd1 {[%emt 0:00:15]} 39. Qe2 {[%emt 0:00:19]} Qxf4+ {[%emt 0:00:07]} 0-1

[Event "Match UKR vs KGZ 2021"]
[Site "Online"]
[Date "2021.02.14"]
[Round "2.14"]
[White "Kovalyshyn, Yuliana"]
[Black "Makeeva, Bermet"]
[Result "0-1"]
[ECO "C44"]
[WhiteElo "1137"]
[BlackElo "1157"]
[Annotator "NA RC"]
[PlyCount "136"]
[EventDate "2021.02.14"]
[EventType "team-tourn"]
[EventCountry "NET"]
[SourceTitle "playchess.com"]
[Source "ChessBase"]
[SourceQuality "1"]
[WhiteTeam "UKR"]
[BlackTeam "KGZ"]
[BlackTeamCountry "KGZ"]
[TimeControl "900+10"]

1. e4 {[%emt 0:00:00]} e5 {[%emt 0:00:04]} 2. Nf3 {[%emt 0:00:05]} Nc6 {[%emt 0:00:05]} 3. d4 {[%emt 0:00:04]} exd4 {[%emt 0:00:04]} 4. c3 {[%emt 0:00:03]} dxc3 {[%emt 0:00:05]} 5. Nxc3 {[%emt 0:00:03]} d6 {[%emt 0:01:07]} 6. Bc4 {[%emt 0:00:07]} Nf6 {[%emt 0:00:59]} 7. Qb3 {[%emt 0:00:12]} Be6 {[%emt 0:01:42]} 8. Bxe6 {[%emt 0:00:50]} fxe6 {[%emt 0:00:14]} 9. Qxb7 {[%emt 0:00:55]} Na5 {[%emt 0:02:05]} 10. Qa6 {[%emt 0:00:11]} c5 {[%emt 0:02:14]} 11. Qb5+ {[%emt 0:00:50]} Nd7 {[%emt 0:01:01]} 12. Bg5 {[%emt 0:00:50]} Qb6 {[%emt 0:01:14]} 13. Qe2 {[%emt 0:00:37]} Rb8 {[%emt 0:01:45]} 14. Rb1 {[%emt 0:00:27]} Nc6 {[%emt 0:00:25]} 15. O-O {[%emt 0:00:41]} Be7 {[%emt 0:00:22]} 16. Bxe7 {[%emt 0:00:40]} Nxe7 {[%emt 0:00:05]} 17. e5 {[%emt 0:00:56]} d5 {[%emt 0:01:28]} 18. Qd2 {[%emt 0:02:18]} O-O {[%emt 0:00:56]} 19. Qg5 {[%emt 0:00:50]} Ng6 {[%emt 0:00:38]} 20. Rfe1 {[%emt 0:00:18]} Rf5 {[%emt 0:01:33]} 21. Qg3 {[%emt 0:01:01]} Rbf8 {[%emt 0:00:06]} 22. Nh4 {[%emt 0:00:43]} Nxh4 {[%emt 0:00:05]} 23. Qxh4 {[%emt 0:00:06]} Rxf2 {[%emt 0:00:06]} 24. Rf1 {[%emt 0:00:22]} Rxf1+ {[%emt 0:00:13]} 25. Rxf1 {[%emt 0:00:11]} c4+ {[%emt 0:00:02]} 26. Rf2 {[%emt 0:00:10]} Rxf2 {[%emt 0:00:05]} 27. Qxf2 {[%emt 0:00:04]} Qxf2+ {[%emt 0:00:02]} 28. Kxf2 {[%emt 0:00:02]} Nxe5 {[%emt 0:00:02]} 29. Ke3 {[%emt 0:00:11]} Kf7 {[%emt 0:00:04]} 30. Nb5 {[%emt 0:00:16]} a6 {[%emt 0:00:06]} 31. Nc7 {[%emt 0:00:07]} Ng4+ {[%emt 0:00:06]} 32. Ke2 {[%emt 0:00:18]} h5 {[%emt 0:00:29]} 33. Nxa6 {[%emt 0:00:06]} Ne5 {[%emt 0:00:15]} 34. a4 {[%emt 0:00:04]} Nc6 {[%emt 0:00:07]} 35. Nc5 {[%emt 0:00:42]} e5 {[%emt 0:00:17]} 36. b3 {[%emt 0:00:26]} Nd4+ {[%emt 0:00:31]} 37. Kd2 {[%emt 0:00:07]} cxb3 {[%emt 0:00:03]} 38. Kc1 {[%emt 0:00:20]} Ke7 {[%emt 0:00:12]} 39. a5 {[%emt 0:00:03]} Kd6 {[%emt 0:00:15]} 40. a6 {[%emt 0:00:04]} Nb5 {[%emt 0:00:05]} 41. Nxb3 {[%emt 0:00:07]} Kc6 {[%emt 0:00:05]} 42. Kd2 {[%emt 0:00:09]} Kb6 {[%emt 0:00:02]} 43. Ke3 {[%emt 0:00:08]} Kxa6 {[%emt 0:00:03]} 44. Nc5+ {[%emt 0:00:14]} Kb6 {[%emt 0:00:03]} 45. Nd7+ {[%emt 0:00:07]} Kc7 {[%emt 0:00:05]} 46. Nxe5 {[%emt 0:00:02]} Kd6 {[%emt 0:00:04]} 47. Nd3 {[%emt 0:00:07]} Nc7 {[%emt 0:00:15]} 48. Kf4 {[%emt 0:00:14]} Ne6+ {[%emt 0:00:22]} 49. Kf5 {[%emt 0:00:15]} g5 {[%emt 0:00:07]} 50. Kg6 {[%emt 0:00:12]} h4 {[%emt 0:00:07]} 51. Kh5 {[%emt 0:00:05]} Nf4+ {[%emt 0:00:41]} 52. Nxf4 {[%emt 0:00:17]} gxf4 {[%emt 0:00:03]} 53. Kg4 {[%emt 0:00:01]} Ke5 {[%emt 0:00:07]} 54. Kf3 {[%emt 0:00:03]} Kd4 {[%emt 0:00:04]} 55. Kxf4 {[%emt 0:00:34]} Kc3 {[%emt 0:00:10]} 56. Kf3 {[%emt 0:00:03]} d4 {[%emt 0:00:09]} 57. Ke2 {[%emt 0:00:15]} Kc2 {[%emt 0:00:03]} 58. Ke1 {[%emt 0:00:02]} d3 {[%emt 0:00:02]} 59. Kf2 {[%emt 0:00:02]} d2 {[%emt 0:00:02]} 60. g3 {[%emt 0:00:03]} hxg3+ {[%emt 0:00:04]} 61. Kxg3 {[%emt 0:00:09]} d1=Q {[%emt 0:00:04]} 62. h3 {[%emt 0:00:08]} Kd3 {[%emt 0:00:03]} 63. Kh4 {[%emt 0:00:05]} Qg1 {[%emt 0:00:05]} 64. Kh5 {[%emt 0:00:04]} Qg3 {[%emt 0:00:04]} 65. h4 {[%emt 0:00:05]} Ke4 {[%emt 0:00:05]} 66. Kh6 {[%emt 0:00:06]} Kf5 {[%emt 0:00:03]} 67. h5 {[%emt 0:00:08]} Kf6 {[%emt 0:00:05]} 68. Kh7 {[%emt 0:00:06]} Qg7# {[%emt 0:00:03]} 0-1